Cogmind - Beta 12 @@@ ROGUE MODE // 2023.03.27 @ 16:23:23 Player: Exp. Geonium Core Result: Destroyed by S-43 Plague with Heavy Machine Gun Performance ------------- Evolutions (8) 4000 Regions Visited (25) 5000 Robots Destroyed (227) 1135 Value Destroyed (8079) 8079 Prototype IDs (58) 1160 Alien Tech Used (6) 1200 Bonus (7684) 7684 TOTAL SCORE: 28258 Bonus ------- High Alert Combat Kills 776 Follower Combat Kills 2186 Network Hubs Disabled 400 Aligned with FarCom 300 Met Zhirov 300 Built Enhanced Grunts 300 Met R17 at Cetus 500 Used Core Reset Matrix 3000 Met R17 at Research 2000 Friendly Fire -2078 Cogmind --------- Core Integrity 0/1450 Matter 229/300 Energy 100/100 System Corruption 2% Temperature Cool (0) Movement Core (50) Location -2/Research Parts ------- > --- POWER (3) -------- (None) > --- PROPULSION (5) --- (None) > --- UTILITY (12) ----- Advanced Targeting Computer Advanced Component Analysis Suite > --- WEAPON (3) ------- (None) > --- INVENTORY (5) ---- Phase Armor Subatomic Replicator Enhanced Quantum Rifle Peak State ------------ > --- POWER ------------ Cld. Multi-Antimatter Reactor > --- PROPULSION ------- Flying Diametric-Siege Exoskeleton > --- UTILITY ---------- Armored Scrap Engine Advanced Signal Interpreter Improved Salvage Targeting Computer Advanced Targeting Computer Advanced Targeting Computer Improved Armor Integrity Analyzer Phase Armor Graphene Brace Improved Hacking Suite Advanced Corruption Screen > --- WEAPON ----------- Enhanced Force Lance > --- INVENTORY -------- Experimental Hacking Suite Experimental System Shield Terrabomb Terrabomb Terrabomb [Rating: 134] Favorites ----------- Power Constructs Engine Heavy Ion Engine Power Core Light Nuclear Core Reactor Constructs Propulsion Light Treads Treads Light Treads Leg Titanium Leg Wheel Compact Wheel Hover Unit Gyrokinetic Inverter Flight Unit Constructs Utility High-capacity Storage Unit Device Armored Scrap Engine Storage High-capacity Storage Unit Processor Improved Salvage Targeting Computer Hackware Hacking Suite Protection Weapon Shielding Artifact Phase Armor Weapon Constructs Energy Gun Constructs Energy Cannon Matter Neutralizer Ballistic Gun 8R-AWN's Boregun Ballistic Cannon Improved Light Cannon Launcher Long-range Missile Launcher Special Weapon Plasma Flamer Impact Weapon Maul Slashing Weapon Phasing Sabre Piercing Weapon Enhanced Force Lance Build | -11 -10 -10 -9 -9 -9 -8 -8 -8 -8 -6 -5 -5 -5 -5 -5 -4 -4 -4 -4 -4 -4 -3 -3 -3 -2 ------- Run | Jun Mat Min Mat Min Exi Min Mat Sto Rec Fac Fac Ext Cet Arc Hub Fac Was Fac Upp Upp Zhi Pro Res Qua Res Slots Evolved 16 | . . . 2 . . . 2 . . 4 2 . . . . 2 . . . . . . 2 . 2 Power 2 | . . . . . . . . . . . . . . . . 1 . . . . . . . . 1 Propulsion 3 | . . . 1 . . . . . . . . . . . . 1 . . . . . . . . 1 Utility 10 | . . . . . . . 2 . . 4 2 . . . . . . . . . . . 2 . . Weapon 1 | . . . 1 . . . . . . . . . . . . . . . . . . . . . . Parts Attached 181 | 2 2 2 19 . 20 1 5 7 2 5 7 8 4 . 3 2 10 9 5 8 11 2 18 11 18 Power 18 | . . . 1 . 2 . . 2 . . . . . . . . . 1 1 1 2 . 2 2 4 Engine 3 | . . . . . 1 . . 1 . . . . . . . . . . 1 . . . . . . Core 4 | . . . 1 . 1 . . 1 . . . . . . . . . . . 1 . . . . . Reactor 11 | . . . . . . . . . . . . . . . . . . 1 . . 2 . 2 2 4 Propulsion 41 | 2 1 1 7 . 4 1 3 3 1 . . . . . . . . . . 1 3 . 5 2 7 Treads 19 | 2 . 1 2 . 4 1 3 3 1 . . . . . . . . . . 1 . . 1 . . Leg 3 | . . . 3 . . . . . . . . . . . . . . . . . . . . . . Wheel 3 | . 1 . 2 . . . . . . . . . . . . . . . . . . . . . . Hover 4 | . . . . . . . . . . . . . . . . . . . . . . . 3 1 . Flight 12 | . . . . . . . . . . . . . . . . . . . . . 3 . 1 1 7 Utility 78 | . 1 . 4 . 7 . 2 1 1 4 5 2 4 . 3 2 7 7 3 5 5 1 5 6 3 Device 30 | . . . 1 . 4 . . . . 2 1 1 1 . . 1 4 4 3 4 2 . 1 . 1 Storage 5 | . 1 . . . 1 . . . . . . . . . . 1 . . . . 1 . . . 1 Processor 20 | . . . 1 . 1 . 1 . . 1 1 1 1 . 1 . 1 3 . 1 . 1 3 2 1 Hackware 13 | . . . 1 . . . 1 . 1 . 3 . . . 2 . . . . . 1 . 1 3 . Protection 9 | . . . 1 . 1 . . 1 . 1 . . 2 . . . 2 . . . 1 . . . . Artifact 1 | . . . . . . . . . . . . . . . . . . . . . . . . 1 . Weapon 44 | . . 1 7 . 7 . . 1 . 1 2 6 . . . . 3 1 1 1 1 1 6 1 4 Energy Gun 10 | . . . 3 . 2 . . . . . . . . . . . . . . . . 1 3 . 1 Energy Cannon 1 | . . . . . . . . . . . . . . . . . . . . . . . 1 . . Ballistic Gun 11 | . . 1 4 . 4 . . 1 . . . . . . . . . 1 . . . . . . . Ballistic Cannon 1 | . . . . . 1 . . . . . . . . . . . . . . . . . . . . Launcher 9 | . . . . . . . . . . 1 1 5 . . . . 2 . . . . . . . . Special Weapon 1 | . . . . . . . . . . . . . . . . . . . 1 . . . . . . Impact Weapon 4 | . . . . . . . . . . . 1 . . . . . . . . 1 1 . 1 . . Slashing Weapon 6 | . . . . . . . . . . . . 1 . . . . 1 . . . . . . 1 3 Piercing Weapon 1 | . . . . . . . . . . . . . . . . . . . . . . . 1 . . Special Melee Weapon . | . . . . . . . . . . . . . . . . . . . . . . . . . . Unidentified Prototypes 28 | . . . 3 . 7 . 1 1 . . . . 1 . . . . . . . 6 . 2 7 . Corrupted Parts 2 | . . . . . . . . . 1 . . . . . . . 1 . . . . . . . . System Corruption 6 | . . . . . . . . . 3 . . . . . . . 3 . . . . . . . . Parts Lost 84 | . . . 7 . 6 . . . . 3 1 5 . . . . 10 2 7 7 . 3 7 11 15 Power 9 | . . . 1 . . . . . . 2 . . . . . . 1 . 2 2 . . . 1 . Propulsion 29 | . . . 3 . 3 . . . . . . 1 . . . . 1 1 2 3 . . 3 2 10 Utility 31 | . . . 1 . 2 . . . . . 1 2 . . . . 5 . 3 1 . 2 2 8 4 Weapon 15 | . . . 2 . 1 . . . . 1 . 2 . . . . 3 1 . 1 . 1 2 . 1 Highest Loss Streak 10 | . . . 7 . 5 . . . . 2 1 3 . . . . 7 2 3 5 . 1 3 4 10 To Critical Strikes 6 | . . . . . 4 . . . . . . . . . . . 2 . . . . . . . . Average Slot Usage (%) 74 | . 85 85 92 100 82 88 90 89 90 74 74 72 70 70 69 61 32 52 58 69 58 74 67 57 32 Engine 2 | . 14 14 3 . 4 11 9 7 . . . 1 1 . . . . . 1 1 . . . . . Core 2 | . . . 7 11 6 . . 1 9 4 4 2 1 . . . . . . 3 . . . . . Reactor 1 | . . . . . . . . . . . . . 1 5 5 5 2 5 1 . 2 2 3 2 1 Treads 11 | . 15 16 13 22 28 33 27 27 27 11 . 3 5 5 5 1 . . . 3 . . . . . Wheel 1 | . 12 11 6 11 4 . . . . . . . . . . . . . 1 5 . . . . . Hover 1 | . . . . . . . . . . 2 4 1 . . . . . 3 3 . . . 3 . 2 Device 7 | . . . 2 . 2 . . . . 9 7 8 17 17 11 8 6 12 17 24 14 14 12 8 2 Storage 5 | . 14 14 11 11 9 11 9 9 9 6 5 5 5 5 5 5 . . . . 2 5 3 . . Processor 16 | . . . 5 . 5 11 18 18 18 19 19 25 22 23 22 21 5 19 21 15 15 15 21 22 13 Hackware 5 | . . . . 11 2 . 9 7 . 6 13 11 . . 10 10 5 5 5 5 7 10 9 13 1 Energy Gun 3 | . 14 6 8 11 3 11 9 9 9 2 . . . . . . . . . . . 3 4 . . Energy Cannon 1 | . . . . . . . . . . . 4 1 3 3 4 . . . 4 4 . . 1 . . Ballistic Gun 5 | . 14 21 23 22 14 11 9 8 9 3 . . . . . . . 3 . . . . . . . Naked Turns . | . . . . . . . . . . . . . . . . . . . . . . . . . . Heaviest Build 111 | 12 47 47 55 54 64 64 64 65 65 68 67 67 81 72 72 104 111 45 32 45 32 32 42 24 13 Greatest Support 140 | 40 40 40 30 16 63 65 65 62 62 62 51 77 77 77 140 140 140 93 54 70 18 18 69 24 18 Greatest Overweight (x) 3 | . 2 2 3 3 3 1 1 1 1 2 1 1 1 . . . . . 1 1 1 1 2 . 2 Average Overweight (x) . | . 1 1 2 3 1 . . . 1 1 . . . . . . . . . . . . . . . Largest Inventory Capacity 25 | 8 20 20 20 20 20 20 20 20 20 20 20 20 20 20 20 25 25 5 5 5 5 5 5 5 25 Average Capacity 14 | 8 18 20 20 20 17 20 20 20 20 20 20 20 20 20 20 21 7 5 5 5 5 5 5 5 5 Most Carried 22 | 6 9 17 20 19 20 20 20 20 20 18 18 20 19 20 20 22 22 5 5 5 5 5 5 5 5 Average Carried 12 | 5 7 9 17 19 14 20 19 19 19 15 15 16 17 19 19 20 6 4 4 4 4 4 3 4 4 Final Capacity 25 | 8 20 20 20 20 20 20 20 20 20 20 20 20 20 20 20 25 5 5 5 5 5 5 5 5 5 Final Carried 22 | 4 9 17 19 19 20 20 20 20 20 16 15 19 19 20 20 22 5 5 5 5 4 5 5 4 4 Scrap Engine Consumption 216 | . . . . . . . . . . 27 5 67 25 1 6 5 5 16 3 . 2 2 49 3 . Constructs Created 15 | . . . . . . . . . . 4 2 1 . . . . . 1 2 . . . 4 1 . Constructs Modified 76 | . . . . . . . . . . 6 1 25 10 1 6 4 . 3 3 . . . 14 3 . Class Distribution -------------------- 25% | Scavenger-Gunner 20% | Mutant 19% | Hacker-Mutant 8% | Hacker-Construct 6% | Scavenger-Mutant 5% | Scavenger-Construct 4% | Gunner 4% | Derelict-Mutant Dominant Class ---------------- Mutant | -10/Materials Mutant | -10/Mines Gunner | -9/Materials Scavenger-Gunner | -9/Mines Mutant | -9/Exiles Scavenger-Gunner | -8/Mines Scavenger-Gunner | -8/Materials Scavenger-Gunner | -8/Storage Scavenger-Gunner | -8/Recycling Scavenger-Mutant | -6/Factory Hacker-Mutant | -5/Factory Hacker-Construct | -5/Extension Scavenger-Construct | -5/Cetus Scavenger-Construct | -5/Archives Scavenger-Construct | -5/Hub_04(d) Hacker-Construct | -4/Factory Mutant | -4/Waste Mutant | -4/Factory Mutant | -4/Upper Caves Derelict-Mutant | -4/Upper Caves Hacker-Mutant | -4/Zhirov Hacker-Mutant | -3/Proximity Caves Hacker-Mutant | -3/Research Hacker-Mutant | -3/Quarantine Mutant | -2/Research Resources | -11 -10 -10 -9 -9 -9 -8 -8 -8 -8 -6 -5 -5 -5 -5 -5 -4 -4 -4 -4 -4 -4 -3 -3 -3 -2 ----------- Run | Jun Mat Min Mat Min Exi Min Mat Sto Rec Fac Fac Ext Cet Arc Hub Fac Was Fac Upp Upp Zhi Pro Res Qua Res Matter Collected 4589 | 183 68 47 353 . 817 87 255 215 . 159 417 254 78 . 55 . 102 141 366 381 200 21 234 . 156 Remotely . | . . . . . . . . . . . . . . . . . . . . . . . . . . Salvage Created 11153 | . 122 128 862 39 494 152 1038 930 334 1047 781 1246 339 36 1117 . 1137 224 187 190 285 . 240 . 225 Parts 572 | . 10 20 49 4 76 18 48 60 20 50 31 49 18 3 45 . 15 18 4 5 3 . 8 . 18 Haulers Intercepted 7 | . . . 3 . . . 3 1 . . . . . . . . . . . . . . . . . Recyclers Shooed 12 | . 1 . . . . . . 1 . 3 2 4 . . . . . 1 . . . . . . . Parts Field Recycled . | . . . . . . . . . . . . . . . . . . . . . . . . . . Retrieved Matter . | . . . . . . . . . . . . . . . . . . . . . . . . . . Parts Self-Destructed 12 | . . . . . . . . . . . . . . . . . . . 5 4 . 3 . . . Prevented 3 | . . . . . . . . . . . . . . . . . . . . 1 . 2 . . . Kills | -11 -10 -10 -9 -9 -9 -8 -8 -8 -8 -6 -5 -5 -5 -5 -5 -4 -4 -4 -4 -4 -4 -3 -3 -3 -2 ------- Run | Jun Mat Min Mat Min Exi Min Mat Sto Rec Fac Fac Ext Cet Arc Hub Fac Was Fac Upp Upp Zhi Pro Res Qua Res Combat Hostiles Destroyed 165 | . 3 7 15 4 3 9 16 8 6 23 15 18 5 . 9 . 4 2 5 4 . . 3 . 6 Melee 9 | . . . . . . . . . . . . 2 . . . . . . . . . . 1 . 6 Guns 75 | . 3 7 15 1 3 7 14 8 6 8 . . . . . . . 2 . . . . 1 . . Cannons 44 | . . . . . . . . . . 2 7 8 5 . 9 . 4 . 5 3 . . 1 . . AOE 33 | . . . . 3 . 2 2 . . 12 8 6 . . . . . . . . . . . . . Classes Destroyed 22 | . 1 1 6 . 3 . 2 1 2 . 2 . . . 1 . 1 1 . 1 . . . . . Worker 14 | . . . 1 . . 1 2 3 . . 2 . . . 5 . . . . . . . . . . Builder 10 | . . . . . . . 1 1 1 . 3 1 . . 3 . . . . . . . . . . Tunneler 2 | . . . . . . . . . . . 1 . . . 1 . . . . . . . . . . Hauler 7 | . . . 3 . . . 3 1 . . . . . . . . . . . . . . . . . Recycler 8 | . . . 1 . . . . 3 . 1 1 2 . . . . . . . . . . . . . Operator 3 | . . . . . . . . 1 . . . . . 1 1 . . . . . . . . . . Turret 1 | . . . . . 1 . . . . . . . . . . . . . . . . . . . . Watcher 5 | . . . 1 . . . . 2 . . . . 1 . 1 . . . . . . . . . . Swarmer 43 | . . 6 4 4 . 9 2 . . 7 . 5 . . . . . . 1 . . . . . 5 Grunt 60 | . 3 1 6 . . . 7 4 2 12 12 4 2 . 4 . . . 1 1 . . 1 . . Brawler 3 | . . . . . . . . . . . 1 1 . . 1 . . . . . . . . . . Duelist 4 | . . . 1 . . . 1 . . 1 . 1 . . . . . . . . . . . . . Protector 1 | . . . . . . . . . 1 . . . . . . . . . . . . . . . . Sentry 29 | . . . 4 . . . 5 4 1 2 1 5 . . 3 . . 1 1 . . . 2 . . Hunter 4 | . . . . . . . 1 . 1 . . . . . . . . . 2 . . . . . . Programmer 9 | . . . . . . . . . 1 1 1 1 1 . . . . . . 3 . . . . 1 Heavy 1 | . . . . . . . . . . . . . . . 1 . . . . . . . . . . Behemoth 1 | . . . . . . . . . . . . . . . . . . 1 . . . . . . . Compactor 4 | . . . . . . . . . . . . . . . . . 4 . . . . . . . . Cetus Guard 2 | . . . . . . . . . . . . . 2 . . . . . . . . . . . . Enhanced Grunt 4 | . . . . . . . . . . . . . . . 4 . . . . . . . . . . Zionite 8 | . . . . . 8 . . . . . . . . . . . . . . . . . . . . Samaritan 1 | . . . . . . . . . . . . . . . . . . . . 1 . . . . . Assembled 2 | . . . . . 2 . . . . . . . . . . . . . . . . . . . . Thug 1 | . . . . . . . . . . . . 1 . . . . . . . . . . . . . Best Kill Streak 11 | . 3 3 5 4 4 4 10 8 6 7 11 5 3 1 9 . 1 1 3 3 . . 1 . 3 Combat Bots Only 8 | . 3 3 5 4 1 4 6 5 5 6 8 5 3 . 4 . 1 1 3 2 . . 1 . 3 Max Kills in Single Turn 9 | . 1 1 2 4 2 2 2 2 2 3 4 2 1 1 9 . 1 1 1 1 . . 1 . 1 Gunslinging 1 | . . . 1 . . . . . . . . . . . . . . . . . . . . . . Exploded 3 | . . . . 3 . 2 1 . . 3 3 2 . . . . . . . . . . . . . Melee 1 | . . . . . . . . . . . . 1 . . . . . . . . . . 1 . 1 Uniques/NPCs Destroyed 4 | . . . . . 4 . . . . . . . . . . . . . . . . . . . . 8R-AWN (-9/Exiles) EX-HEX (-9/Exiles) EX-BIN (-9/Exiles) EX-DEC (-9/Exiles) Combat | -11 -10 -10 -9 -9 -9 -8 -8 -8 -8 -6 -5 -5 -5 -5 -5 -4 -4 -4 -4 -4 -4 -3 -3 -3 -2 -------- Run | Jun Mat Min Mat Min Exi Min Mat Sto Rec Fac Fac Ext Cet Arc Hub Fac Was Fac Upp Upp Zhi Pro Res Qua Res Damage Taken 20337 | . 92 172 997 16 1260 126 331 199 45 1277 837 817 718 141 595 . 1862 1397 1761 1417 . 458 1794 2020 2005 Core 4412 | . 42 43 135 . 227 8 23 . . 172 129 26 30 . 79 . 157 173 293 220 . 152 471 571 1461 Absorbed by Shields 464 | . . . . . . . . . . 227 . 61 176 . . . . . . . . . . . . Redirected to Shielding 11 | . . . . . . . . 4 . . . . 7 . . . . . . . . . . . . Regen/Repaired (Parts) 3390 | . . . . . . . . . . 45 128 823 408 . 447 535 200 200 450 . . . 154 . . Core Remaining (%) 55 | 100 . 66 . . . 7 . . 95 79 . . . . 73 . . . . . . 13 . 11 . Volleys Fired 597 | . 11 23 46 1 78 8 35 25 4 40 55 36 30 9 31 . 46 30 49 27 . 1 12 . . Largest 3 | . 2 2 3 3 3 1 1 1 1 1 2 2 1 1 1 . 1 1 1 1 . 1 2 . . Hottest 300 | . 60 60 105 91 91 30 30 30 30 35 73 300 146 78 71 . 71 35 100 100 . 65 178 . . Shots Fired 877 | . 22 42 131 3 146 25 62 41 17 49 57 37 30 9 31 . 46 31 49 26 . 1 22 . . Gun 555 | . 22 42 131 3 146 25 62 41 17 28 . . . . . . . 31 . . . 1 6 . . Cannon 300 | . . . . . . . . . . 13 48 32 30 9 31 . 46 . 49 26 . . 16 . . Launcher 22 | . . . . . . . . . . 8 9 5 . . . . . . . . . . . . . Special . | . . . . . . . . . . . . . . . . . . . . . . . . . . Kinetic 568 | . 11 27 93 2 130 9 35 25 4 19 48 23 13 4 9 . . 31 49 26 . . 10 . . Thermal 157 | . 11 15 21 . . . . . . . . 8 17 5 22 . 46 . . . . . 12 . . Explosive 22 | . . . . . . . . . . 8 9 5 . . . . . . . . . . . . . Electromagnetic 130 | . . . 17 1 16 16 27 16 13 22 . 1 . . . . . . . . . 1 . . . Robot Hit Streak 33 | . 4 5 10 1 18 6 14 26 16 26 31 5 7 5 10 . 32 33 7 6 . 2 11 . . Robot Miss Streak 7 | . 5 7 2 1 3 6 3 1 1 2 1 1 3 3 3 . 1 1 2 4 . . 1 . . Penetration Max 2 | . . . . . 1 . 2 2 . . . . 1 1 . . . . . 1 . . . . . Secondary Targets 5 | . 1 1 2 1 . . . . . . . . . . . . . . . . . . . . . Max Gunslinging Chain 1 | . 1 1 1 1 . . . . . . . . . . . . . . . . . . . . . Autonomous 82 | . . . . . 1 16 27 16 13 9 . . . . . . . . . . . . . . . Shots Hit Robots 628 | . 9 18 90 1 117 15 41 30 15 47 32 27 14 5 16 . 46 25 28 14 6 1 20 . 11 Core Hits 437 | . 8 11 39 4 37 9 34 29 14 92 55 28 9 2 24 . 8 8 9 4 . . 9 . 4 Critical Kills 24 | . . . . . 3 1 4 10 1 4 . 1 . . . . . . . . . . . . . Critical Parts Destroyed 31 | . . . . . 8 2 5 3 2 6 . 4 . . . . . . . . 1 . . . . Critical Strikes 68 | . . . . . 11 3 10 14 3 11 3 7 . . . . 3 . 2 . 1 . . . . Destroy 56 | . . . . . 11 3 9 13 3 11 . 3 . . . . 3 . . . . . . . . Blast 5 | . . . . . . . . . . . 3 . . . . . . . 2 . . . . . . Corrupt 2 | . . . . . . . 1 1 . . . . . . . . . . . . . . . . . Smash 5 | . . . . . . . . . . . . 4 . . . . . . . . 1 . . . . Melee Attacks 64 | . . . . . . . . . . . 10 14 . . . . 1 . . 1 6 . 7 9 16 Impact 27 | . . . . . . . . . . . 10 5 . . . . . . . 1 6 . 5 . . Slashing 29 | . . . . . . . . . . . . 9 . . . . 1 . . . . . . 3 16 Piercing 8 | . . . . . . . . . . . . . . . . . . . . . . . 2 6 . Sneak Attacks 4 | . . . . . . . . . . . 1 3 . . . . . . . . . . . . . Combat Hostiles . | . . . . . . . . . . . . . . . . . . . . . . . . . . Follow-up Attacks . | . . . . . . . . . . . . . . . . . . . . . . . . . . Damage Inflicted 25357 | . 104 162 1273 131 1838 348 1159 925 259 2221 2622 2134 1413 576 2905 . 2676 660 1093 1147 481 27 631 . 572 Guns 7042 | . 104 159 1105 19 1838 242 1060 925 232 575 . . . . . . . 660 . . . 27 96 . . Cannons 10379 | . . . . . . . . . . 257 616 831 1413 576 1413 . 2654 . 1093 1108 . . 418 . . Explosions 5829 | . . . 168 112 . 106 99 . . 1384 1901 567 . . 1492 . . . . . . . . . . Melee 1942 | . . . . . . . . . . . 105 606 . . . . 22 . . 39 481 . 117 . 572 Ramming 165 | . . 3 . . . . . . 27 5 . 130 . . . . . . . . . . . . . Kinetic 8335 | . 38 116 649 . 1770 62 322 431 64 292 616 265 417 229 . . . 660 1093 1108 . . 203 . . Thermal 7955 | . 66 43 408 112 . 106 99 . . 383 429 533 996 347 1468 . 2654 . . . . . 311 . . Explosive 3040 | . . . . . . . . . . 1001 1472 567 . . . . . . . . . . . . . Electromagnetic 3920 | . . . 216 19 68 180 738 494 168 540 . 33 . . 1437 . . . . . . 27 . . . Impact 847 | . . . . . . . . . . . 105 151 . . . . . . . 39 481 . 71 . . Slashing 1049 | . . . . . . . . . . . . 455 . . . . 22 . . . . . . . 572 Piercing 46 | . . . . . . . . . . . . . . . . . . . . . . . 46 . . Highest Corruption 15 | . 1 1 2 2 3 3 . . 4 3 3 3 3 3 3 . 15 15 15 12 12 12 4 14 2 Average Corruption 5 | . 1 1 1 2 2 3 . . 1 1 2 3 3 3 3 . 6 15 14 12 12 12 3 4 1 Corruption Purged 3 | . . . . . . . . . . . . . . . . . . . 3 . . . . . . Corruption Blocked 1 | . . . . . . . . . . . . . . . . . . . . . . . 1 . . Effects 223 | . 1 3 4 . 14 21 . . . 5 8 1 6 2 12 . 5 11 36 31 6 12 33 12 . Message Errors 55 | . . 1 2 . 3 4 . . . 1 2 . . . 2 . 1 2 13 9 . 4 9 2 . Matter Fused 60 | . . . . . 5 3 . . . 2 4 . 4 1 3 . 1 4 8 10 3 1 8 3 . Heat Flow Errors 23 | . . 1 1 . 1 2 . . . 1 . . 2 . . . 1 . 3 3 . 1 5 2 . Energy Discharges 18 | . . . . . 3 2 . . . . . . . 1 2 . 1 1 2 2 2 . 1 1 . Parts Rejected 1 | . . . . . . . . . . . . . . . . . . 1 . . . . . . . Parts Fused 3 | . . . . . . 1 . . . . . . . . . . . . . 1 . . 1 . . Data Loss (minor) 36 | . 1 . 1 . 1 4 . . . 1 1 1 . . 4 . . 1 4 4 1 3 8 1 . Data Loss (major) 11 | . . 1 . . . 2 . . . . 1 . . . 1 . 1 . 4 1 . . . . . Misfires 3 | . . . . . . 1 . . . . . . . . . . . 1 . . . . 1 . . Alerts 9 | . . . . . 1 2 . . . . . . . . . . . 1 2 . . 1 . 2 . Misdirections 3 | . . . . . . . . . . . . . . . . . . . . . . 2 . 1 . Weapon Failures 1 | . . . . . . . . . . . . . . . . . . . . 1 . . . . . Overload Shots . | . . . . . . . . . . . . . . . . . . . . . . . . . . Overflow Damage 1471 | . . . . . . 15 . . . 7 214 252 55 25 221 . . . 52 197 350 . 26 . 57 Projectiles 586 | . . . . . . . . . . . . 86 55 25 173 . . . 52 195 . . . . . Explosions 219 | . . . . . . 15 . . . 7 149 . . . 48 . . . . . . . . . . Melee 666 | . . . . . . . . . . . 65 166 . . . . . . . 2 350 . 26 . 57 Knockbacks 31 | . . . . . . . . . 1 . 7 2 3 1 . . . . 9 6 1 . 1 . . Impact 4 | . . . . . . . . . 1 . 1 1 . . . . . . . . 1 . . . . Kinetic 26 | . . . . . . . . . . . 6 1 2 1 . . . . 9 6 . . 1 . . Secondary 1 | . . . . . . . . . . . . . 1 . . . . . . . . . . . . Self-Inflicted Damage 403 | . . 1 38 16 . . 50 . . 47 66 . . . 185 . . . . . . . . . . Shots 12 | . . . 1 1 . . 2 . . 1 5 . . . 2 . . . . . . . . . . Rammed 18 | . . 1 . . . . 1 1 4 4 . 6 . . . . . . . 1 . . . . . Targets Rammed 19 | . . 1 . . . . 1 1 4 4 . 6 . . . . 1 . . 1 . . . . . Kicked 1 | . . . . . . . . . . . . . . . . . 1 . . . . . . . . Crushed . | . . . . . . . . . . . . . . . . . . . . . . . . . . Highest Temperature 356 | . 64 255 286 39 312 234 2 1 . 246 96 356 70 13 38 . 246 . 199 199 . 80 182 167 . Average Temperature 78 | . 27 51 90 27 150 111 2 1 . 34 31 107 41 2 20 . 51 . 97 103 . 53 66 105 . Received Heat Transfer 2620 | . 54 . 393 . . . 108 54 . 344 321 116 47 21 72 . . 81 69 210 . 30 102 436 162 Effects 2 | . . . 1 . 1 . . . . . . . . . . . . . . . . . . . . Energy Bleed 1 | . . . 1 . . . . . . . . . . . . . . . . . . . . . . Interference 1 | . . . . . 1 . . . . . . . . . . . . . . . . . . . . Siege Activations . | . . . . . . . . . . . . . . . . . . . . . . . . . . Robots Corrupted 5 | . . . . . . . . . . 1 . . . . 4 . . . . . . . . . . Combat Hostiles 1 | . . . . . . . . . . 1 . . . . . . . . . . . . . . . Parts Fried 29 | . . . 2 . . . 6 2 . 4 2 3 . . 5 . . . . 3 2 . . . . Impact Corruptions 20 | . . . . . . . . . . . 3 4 . . . . . . . 1 11 . 1 . . Robots Melted . | . . . . . . . . . . . . . . . . . . . . . . . . . . Combat Hostiles . | . . . . . . . . . . . . . . . . . . . . . . . . . . Parts Melted 3 | . 1 . . . . . . . . . . . . . . . . . . . . . 2 . . Heat Transferred 5520 | . 150 100 842 50 . 150 50 . . 300 300 272 444 148 679 . 1665 . . . . . 370 . . Parts Sabotaged 1 | . . . . . . . . . . . . . . . 1 . . . . . . . . . . Parts Stolen . | . . . . . . . . . . . . . . . . . . . . . . . . . . Parts Stripped . | . . . . . . . . . . . . . . . . . . . . . . . . . . Power Chain Reactions 9 | . . . 2 1 . . 2 . . 2 1 . . . 1 . . . . . . . . . . Missiles Intercepted . | . . . . . . . . . . . . . . . . . . . . . . . . . . Alert | -11 -10 -10 -9 -9 -9 -8 -8 -8 -8 -6 -5 -5 -5 -5 -5 -4 -4 -4 -4 -4 -4 -3 -3 -3 -2 ------- Run | Jun Mat Min Mat Min Exi Min Mat Sto Rec Fac Fac Ext Cet Arc Hub Fac Was Fac Upp Upp Zhi Pro Res Qua Res Peak Influence 1956 | . 110 227 314 214 . 146 353 425 241 601 914 696 860 593 1956 958 335 292 . . . . 322 214 325 Initial 958 | . . 42 88 106 . . . 145 139 276 294 375 326 344 207 958 335 165 . . . . . . 92 Average 284 | . 56 175 165 214 . 42 147 264 159 349 570 441 599 505 731 958 284 233 . . . . 90 77 218 Maximum Alert Level 5 | . . 1 1 1 . . 1 2 1 2 3 2 3 2 5 3 1 1 . . . . 1 1 1 Low Security (%) 47 | 100 100 83 69 . . 100 62 40 87 5 . 6 . . . . . 21 . . . . 82 93 38 Level 1 29 | . . 16 30 100 . . 37 43 12 63 39 29 11 29 42 . 100 78 . . . . 17 6 61 Level 2 14 | . . . . . . . . 16 . 30 7 63 56 70 7 . . . . . . . . . . Level 3 7 | . . . . . . . . . . . 52 . 32 . 17 100 . . . . . . . . . Level 4 1 | . . . . . . . . . . . . . . . 30 . . . . . . . . . . Level 5 . | . . . . . . . . . . . . . . . 2 . . . . . . . . . . High Security . | . . . . . . . . . . . . . . . . . . . . . . . . . . Max Security . | . . . . . . . . . . . . . . . . . . . . . . . . . . Squads Dispatched 39 | . 2 1 5 . . . 5 1 . 4 2 5 . . 3 . . . . 1 . . 6 3 1 Investigation 8 | . 1 1 3 . . . . . . . . . . . . . . . . . . . 2 1 . Extermination 2 | . . . . . . . . . . 2 . . . . . . . . . . . . . . . Reinforcement 21 | . 1 . 2 . . . 2 1 . 1 2 3 . . 2 . . . . . . . 4 2 1 Assault 5 | . . . . . . . . . . 1 . 2 . . 1 . . . . 1 . . . . . Garrison 3 | . . . . . . . 3 . . . . . . . . . . . . . . . . . . Intercept . | . . . . . . . . . . . . . . . . . . . . . . . . . . Searches Triggered 1 | . . . . . . . . . . 1 . . . . . . . . . . . . . . . Construction Impeded 2 | . . . . . . . . . . 1 1 . . . . . . . . . . . . . . Haulers Reinforced 1 | . . . . . . . . . . . . . . . . . . . . . . . 1 . . Active Scanning Responses . | . . . . . . . . . . . . . . . . . . . . . . . . . . Cargo Convoy Interrupts . | . . . . . . . . . . . . . . . . . . . . . . . . . . Stealth | -11 -10 -10 -9 -9 -9 -8 -8 -8 -8 -6 -5 -5 -5 -5 -5 -4 -4 -4 -4 -4 -4 -3 -3 -3 -2 --------- Run | Jun Mat Min Mat Min Exi Min Mat Sto Rec Fac Fac Ext Cet Arc Hub Fac Was Fac Upp Upp Zhi Pro Res Qua Res Distress Signals 23 | . . . 1 . . . 4 1 1 . . 3 2 . 2 . . 1 . . . . 5 1 2 Communications Jammed . | . . . . . . . . . . . . . . . . . . . . . . . . . . Distress Signals . | . . . . . . . . . . . . . . . . . . . . . . . . . . Times Spotted 408 | . 6 9 30 . 18 10 24 10 4 34 18 42 17 4 25 . 6 6 9 18 . 7 40 27 44 Peak Tracking Total 19 | . 3 3 5 . 11 4 6 4 3 6 7 7 6 2 7 . 2 4 4 9 . 7 9 12 19 Tactical Retreats 38 | . . 1 1 . 7 . 2 . . 3 . 5 . . . . . . 1 2 . . 3 7 6 Traps | -11 -10 -10 -9 -9 -9 -8 -8 -8 -8 -6 -5 -5 -5 -5 -5 -4 -4 -4 -4 -4 -4 -3 -3 -3 -2 ------- Run | Jun Mat Min Mat Min Exi Min Mat Sto Rec Fac Fac Ext Cet Arc Hub Fac Was Fac Upp Upp Zhi Pro Res Qua Res Traps Triggered 12 | . 1 . 3 . . . . 1 . . 2 2 . . 1 1 . . . . . . . . 1 Indirectly 1 | . . . . . . . . . . . . . . . 1 . . . . . . . . . . Trap Hack Attempts . | . . . . . . . . . . . . . . . . . . . . . . . . . . Triggered . | . . . . . . . . . . . . . . . . . . . . . . . . . . Disarmed . | . . . . . . . . . . . . . . . . . . . . . . . . . . Reprogrammed . | . . . . . . . . . . . . . . . . . . . . . . . . . . Reused . | . . . . . . . . . . . . . . . . . . . . . . . . . . Traps Extracted . | . . . . . . . . . . . . . . . . . . . . . . . . . . Installed . | . . . . . . . . . . . . . . . . . . . . . . . . . . Triggered 3 | . . . . . . . . . . . . . . . . . . . . . . 3 . . . Exploded 3 | . . . . . 3 . . . . . . . . . . . . . . . . . . . . Machines | -11 -10 -10 -9 -9 -9 -8 -8 -8 -8 -6 -5 -5 -5 -5 -5 -4 -4 -4 -4 -4 -4 -3 -3 -3 -2 ---------- Run | Jun Mat Min Mat Min Exi Min Mat Sto Rec Fac Fac Ext Cet Arc Hub Fac Was Fac Upp Upp Zhi Pro Res Qua Res Machines Disabled 46 | . . . 1 1 10 3 1 3 . . 4 1 1 2 13 . . 2 . . 1 . . 3 . Max in Single Turn 11 | . . . 1 1 2 3 1 1 . . 2 . 1 . 11 . . 1 . . 1 . . 1 . Network Hub 2 | . . . . . . . . . . . . . . . 2 . . . . . . . . . . Machines Repaired . | . . . . . . . . . . . . . . . . . . . . . . . . . . Machines Sabotaged . | . . . . . . . . . . . . . . . . . . . . . . . . . . Overloaded Fab Kills . | . . . . . . . . . . . . . . . . . . . . . . . . . . Hacking | -11 -10 -10 -9 -9 -9 -8 -8 -8 -8 -6 -5 -5 -5 -5 -5 -4 -4 -4 -4 -4 -4 -3 -3 -3 -2 --------- Run | Jun Mat Min Mat Min Exi Min Mat Sto Rec Fac Fac Ext Cet Arc Hub Fac Was Fac Upp Upp Zhi Pro Res Qua Res Machines Accessed 71 | . 1 1 5 . 2 . 3 6 7 . 6 15 . . 7 2 . 1 1 . 4 . 4 2 4 Terminals 55 | . 1 . 5 . . . 3 5 3 . 5 15 . . 7 . . 1 . . . . 4 2 4 Fabricators . | . . . . . . . . . . . . . . . . . . . . . . . . . . Repair Stations 2 | . . . . . . . . 1 . . . . . . . 1 . . . . . . . . . Recycling Units 6 | . . . . . . . . . 4 . 1 . . . . 1 . . . . . . . . . Scanalyzers . | . . . . . . . . . . . . . . . . . . . . . . . . . . Garrison Access . | . . . . . . . . . . . . . . . . . . . . . . . . . . Total Hacks 226 | . 5 1 11 . 2 . 11 14 15 . 18 31 . . 26 6 . 5 1 . 17 . 16 31 16 Successful 101 | . 1 1 1 . 2 . 5 6 10 . 7 19 . . 10 4 . 2 1 . 17 . 3 9 3 Failed 125 | . 4 . 10 . . . 6 8 5 . 11 12 . . 16 2 . 3 . . . . 13 22 13 Catastrophic 28 | . 1 . 5 . . . 3 . 2 . 2 . . . 1 . . 1 . . . . . 10 3 Database Lockouts . | . . . . . . . . . . . . . . . . . . . . . . . . . . Manual 154 | . 4 . 11 . 1 . 11 8 12 . 15 17 1 . 22 . . 5 . . . . 14 26 7 Terminals 188 | . 5 . 11 . . . 11 12 7 . 17 31 . . 26 . . 5 . . . . 16 31 16 Fabricators . | . . . . . . . . . . . . . . . . . . . . . . . . . . Repair Stations 4 | . . . . . . . . 2 . . . . . . . 2 . . . . . . . . . Recycling Units 13 | . . . . . . . . . 8 . 1 . . . . 4 . . . . . . . . . Scanalyzers . | . . . . . . . . . . . . . . . . . . . . . . . . . . Garrison Access . | . . . . . . . . . . . . . . . . . . . . . . . . . . Terminal Hacks 61 | . 1 1 1 . 2 . 3 3 2 . 3 15 . . 4 . . . 1 . 17 . 1 5 2 Record 9 | . 1 . . . 1 . . . . . . . . . . . . . 1 . 5 . . . 1 Part Schematic 6 | . . . . . . . 1 1 . . . . . . . . . . . . 4 . . . . Robot Schematic 1 | . . . . . . . . . 1 . . . . . . . . . . . . . . . . Robot Analysis 6 | . . . . . . . . . . . . 2 . . . . . . . . 4 . . . . Prototype ID Bank 5 | . . . . . . . . . . . . . . . 1 . . . . . 4 . . . . Open Door 11 | . . 1 . . . . . 1 . . . 9 . . . . . . . . . . . . . Level Access Points 2 | . . . . . . . . . . . . . . . 1 . . . . . . . . 1 . Branch Access Points 3 | . . . 1 . . . 1 1 . . . . . . . . . . . . . . . . . Machine Index 3 | . . . . . . . . . . . 1 . . . . . . . . . . . 1 1 . Terminal Index 7 | . . . . . . . 1 . 1 . 1 1 . . 1 . . . . . . . . 1 1 Fabricator Index 1 | . . . . . . . . . . . 1 . . . . . . . . . . . . . . Garrison Index 1 | . . . . . . . . . . . . . . . . . . . . . . . . 1 . Alert Level 1 | . . . . . . . . . . . . . . . . . . . . . . . . 1 . Unreport Threat 2 | . . . . . . . . . . . . 2 . . . . . . . . . . . . . Locate Traps 1 | . . . . . . . . . . . . . . . 1 . . . . . . . . . . Registered Components 1 | . . . . . . . . . . . . 1 . . . . . . . . . . . . . EX-Prototype ID Bank 1 | . . . . . 1 . . . . . . . . . . . . . . . . . . . . Fabricator Hacks . | . . . . . . . . . . . . . . . . . . . . . . . . . . Repair Station Hacks 3 | . . . . . . . . 1 . . . . . . . 2 . . . . . . . . . Scan Component 2 | . . . . . . . . 1 . . . . . . . 1 . . . . . . . . . Repair 1 | . . . . . . . . . . . . . . . . 1 . . . . . . . . . Recycling Unit Hacks 6 | . . . . . . . . . 3 . 1 . . . . 2 . . . . . . . . . Report Inventory 5 | . . . . . . . . . 3 . 1 . . . . 1 . . . . . . . . . Retrieve Components 1 | . . . . . . . . . . . . . . . . 1 . . . . . . . . . Scanalyzer . | . . . . . . . . . . . . . . . . . . . . . . . . . . Garrison Access Hacks . | . . . . . . . . . . . . . . . . . . . . . . . . . . Unauthorized Hacks 31 | . . . . . . . 2 2 5 . 3 4 . . 6 . . 2 . . . . 2 4 1 Terminals 27 | . . . . . . . 2 2 1 . 3 4 . . 6 . . 2 . . . . 2 4 1 Track 3 | . . . . . . . . . . . . 1 . . 1 . . . . . . . . 1 . Assimilate 2 | . . . . . . . . . . . . . . . . . . . . . . . 2 . . Botnet 17 | . . . . . . . 2 2 1 . 3 3 . . 3 . . 1 . . . . . 1 1 Detonate 1 | . . . . . . . . . . . . . . . 1 . . . . . . . . . . Disrupt 1 | . . . . . . . . . . . . . . . . . . . . . . . . 1 . Operators 3 | . . . . . . . . . . . . . . . 1 . . 1 . . . . . 1 . Fabricators . | . . . . . . . . . . . . . . . . . . . . . . . . . . Repair Stations . | . . . . . . . . . . . . . . . . . . . . . . . . . . Recycling Units 4 | . . . . . . . . . 4 . . . . . . . . . . . . . . . . Tunnel 4 | . . . . . . . . . 4 . . . . . . . . . . . . . . . . Scanalyzers . | . . . . . . . . . . . . . . . . . . . . . . . . . . Garrison Access . | . . . . . . . . . . . . . . . . . . . . . . . . . . Data Cores Recovered 2 | . . . . . . . . 1 . . . . . . 1 . . . . . . . . . . Used . | . . . . . . . . . . . . . . . . . . . . . . . . . . Hacking Detections 52 | . 1 . 4 . . . 3 6 5 . 6 10 . . 6 . . 1 . . . . 4 2 4 Full Trace Events 4 | . 1 . 2 . . . . . . . . . . . . . . . . . . . . 1 . Feedback Events . | . . . . . . . . . . . . . . . . . . . . . . . . . . Feedback Blocked . | . . . . . . . . . . . . . . . . . . . . . . . . . . Robot Schematics Acquired 1 | . . . . . . . . . 1 . . . . . . . . . . . . . . . . Robots Built . | . . . . . . . . . . . . . . . . . . . . . . . . . . Authchips . | . . . . . . . . . . . . . . . . . . . . . . . . . . Time . | . . . . . . . . . . . . . . . . . . . . . . . . . . Total Robot Build Rating . | . . . . . . . . . . . . . . . . . . . . . . . . . . Part Schematics Acquired 6 | . . . . . . . 1 1 . . . . . . . . . . . . 4 . . . . Parts Built . | . . . . . . . . . . . . . . . . . . . . . . . . . . Authchips . | . . . . . . . . . . . . . . . . . . . . . . . . . . Time . | . . . . . . . . . . . . . . . . . . . . . . . . . . Total Part Build Rating . | . . . . . . . . . . . . . . . . . . . . . . . . . . Parts Repaired 1 | . . . . . . . . . . . . . . . . 1 . . . . . . . . . Time 32 | . . . . . . . . . . . . . . . . 32 . . . . . . . . . Parts Recycled . | . . . . . . . . . . . . . . . . . . . . . . . . . . Recycled Matter . | . . . . . . . . . . . . . . . . . . . . . . . . . . Retrieved Matter . | . . . . . . . . . . . . . . . . . . . . . . . . . . Retrieved Components 3 | . . . . . . . . . . . . . . . . 3 . . . . . . . . . Parts Scanalyzed . | . . . . . . . . . . . . . . . . . . . . . . . . . . Part Schematics Acquired . | . . . . . . . . . . . . . . . . . . . . . . . . . . Parts Damaged . | . . . . . . . . . . . . . . . . . . . . . . . . . . Bothacking | -11 -10 -10 -9 -9 -9 -8 -8 -8 -8 -6 -5 -5 -5 -5 -5 -4 -4 -4 -4 -4 -4 -3 -3 -3 -2 ------------ Run | Jun Mat Min Mat Min Exi Min Mat Sto Rec Fac Fac Ext Cet Arc Hub Fac Was Fac Upp Upp Zhi Pro Res Qua Res Used RIF Installer . | . . . . . . . . . . . . . . . . . . . . . . . . . . Robots Hacked . | . . . . . . . . . . . . . . . . . . . . . . . . . . Non-combat . | . . . . . . . . . . . . . . . . . . . . . . . . . . Combat . | . . . . . . . . . . . . . . . . . . . . . . . . . . Robot Hacks Applied . | . . . . . . . . . . . . . . . . . . . . . . . . . . Relay Couplers Released 3 | . . . . . . . . . . . . . . . . . . . . . . . 3 . . Programmers 3 | . . . . . . . . . . . . . . . . . . . . . . . 3 . . Fabnet Peak Effective % . | . . . . . . . . . . . . . . . . . . . . . . . . . . Robots Rewired 14 | . . . . . . . . . . . . 14 . . . . . . . . . . . . . Allies Hacked . | . . . . . . . . . . . . . . . . . . . . . . . . . . Hacks Repelled . | . . . . . . . . . . . . . . . . . . . . . . . . . . Allies | -11 -10 -10 -9 -9 -9 -8 -8 -8 -8 -6 -5 -5 -5 -5 -5 -4 -4 -4 -4 -4 -4 -3 -3 -3 -2 -------- Run | Jun Mat Min Mat Min Exi Min Mat Sto Rec Fac Fac Ext Cet Arc Hub Fac Was Fac Upp Upp Zhi Pro Res Qua Res Total Allies 47 | . . . . . . . . . . . . 25 5 . . . . . . . . . 2 . 15 Largest Group 11 | . . . . . . . . . . . . 11 6 5 5 . . . . . . . 2 . 9 Highest-Rated Group 639 | . . . . . . . . . . . . 451 639 473 473 . . . . . . . 90 . 120 Highest-Rated Ally 159 | . . . . . . . . . . . . 159 159 96 96 . . . . . . . 45 . 15 Total Orders . | . . . . . . . . . . . . . . . . . . . . . . . . . . Ally Attacks 305 | . . . . . . . . . . . . 142 43 24 40 . . . . . . . . . 56 Total Damage 9238 | . . . . . . . . . . . . 3393 1596 1376 1621 . . . . . . . . . 1252 Kills 54 | . . . . . . . . . . . . 21 10 4 13 . . . . . . . . . 6 Allies Corrupted 4 | . . . . . . . . . . . . . . . 3 . . . . . . . 1 . . Allies Melted . | . . . . . . . . . . . . . . . . . . . . . . . . . . Intel | -11 -10 -10 -9 -9 -9 -8 -8 -8 -8 -6 -5 -5 -5 -5 -5 -4 -4 -4 -4 -4 -4 -3 -3 -3 -2 ------- Run | Jun Mat Min Mat Min Exi Min Mat Sto Rec Fac Fac Ext Cet Arc Hub Fac Was Fac Upp Upp Zhi Pro Res Qua Res Robot Analysis Total 6 | . . . . . . . . . . . . 2 . . . . . . . . 4 . . . . Derelict Logs Recovered 3 | . . 1 . . . . . . . . . . . . . . . . 2 . . . . . . Drone Launches . | . . . . . . . . . . . . . . . . . . . . . . . . . . Drone Recoveries . | . . . . . . . . . . . . . . . . . . . . . . . . . . Exploration | -11 -10 -10 -9 -9 -9 -8 -8 -8 -8 -6 -5 -5 -5 -5 -5 -4 -4 -4 -4 -4 -4 -3 -3 -3 -2 ------------- Run | Jun Mat Min Mat Min Exi Min Mat Sto Rec Fac Fac Ext Cet Arc Hub Fac Was Fac Upp Upp Zhi Pro Res Qua Res Turns Passed 14629 | 5 193 368 1065 21 1344 984 549 557 631 750 722 1389 371 88 570 235 224 267 923 788 157 251 1382 510 285 Spaces Moved 8380 | 1 117 202 532 9 635 414 246 202 258 279 360 643 173 44 308 131 119 120 505 606 151 393 949 526 457 Core 624 | . . . . . . . . . . . . . . . . . 85 23 . 110 86 . . 171 149 Treads 2903 | 1 7 22 . . 288 414 246 202 258 209 73 506 173 44 308 48 . . . 1 . . 103 . . Legs 317 | . . . 164 . . . . . . 7 . . . . . 83 34 29 . . . . . . . Wheels 1742 | . 110 180 368 9 347 . . . . . . . . . . . . . 233 495 . . . . . Hover 1163 | . . . . . . . . . . 63 287 137 . . . . . 68 272 . . . 330 6 . Flight 1631 | . . . . . . . . . . . . . . . . . . . . . 65 393 516 349 308 Fastest Speed 29 | 160 130 130 130 145 130 155 155 155 235 137 137 89 111 157 157 157 50 50 132 50 29 29 29 50 34 Average Speed 138 | 160 131 141 158 145 162 232 182 234 235 221 151 116 168 157 157 170 86 154 157 117 67 54 113 70 44 Slowest Speed 305 | 160 160 240 195 145 240 240 235 235 235 305 197 149 217 157 157 179 179 179 266 219 99 99 294 91 150 Overloaded Moves . | . . . . . . . . . . . . . . . . . . . . . . . . . . Propulsion Burnouts . | . . . . . . . . . . . . . . . . . . . . . . . . . . Robots Hopped 43 | . . . . . . . . . . . . . . . . . . . . . . 5 3 28 7 Cave-ins Triggered 1 | . . . . . . . . . . . . . . . . . . . . . . . . 1 . Teleports 1 | . . . . . . . . . . . . . . . . . . . . . . . 1 . . Exploration Rate (%) 45 | 1 23 49 57 4 83 87 28 43 62 11 12 64 57 69 41 5 91 3 71 64 60 62 50 70 21 Regions Visited 25 Branch Regions 15 Pre-discovered Areas 9 | . . . . . 1 . . . 4 . . . . . . . . . 1 . 3 . . . . Known Exits Taken 11 | . . . 1 . . 1 1 1 . . 1 1 1 1 1 . . . . . . . 1 1 . Unknown Exits Taken 12 | 1 1 1 . 1 1 . . . 1 1 . . . . . . . 1 1 1 1 1 . . . Scrap Searched 11 | . . 1 . . . 1 . . . . . . . . . . . . 2 4 . 3 . . . Spaces Dug 76 | . . . . . . . 9 . . . 11 31 . . 5 . . 1 8 4 . . 2 3 2 Terrain Destroyed 689 | . . . 4 3 3 13 33 7 2 40 71 69 11 5 360 . 1 3 32 23 . . 4 3 2 Melee 15 | . . . . . . . . . . . 7 1 . . . . . . . . . . 2 3 2 Projectile 143 | . . . . . 3 3 14 7 2 . 4 12 11 5 21 . 1 3 32 23 . . 2 . . AOE 530 | . . . 4 3 . 10 18 . . 40 60 56 . . 339 . . . . . . . . . . Terrain Rammed . | . . . . . . . . . . . . . . . . . . . . . . . . . . Walls Destroyed . | . . . . . . . . . . . . . . . . . . . . . . . . . . Machines Disabled . | . . . . . . . . . . . . . . . . . . . . . . . . . . Actions | -11 -10 -10 -9 -9 -9 -8 -8 -8 -8 -6 -5 -5 -5 -5 -5 -4 -4 -4 -4 -4 -4 -3 -3 -3 -2 --------- Run | Jun Mat Min Mat Min Exi Min Mat Sto Rec Fac Fac Ext Cet Arc Hub Fac Was Fac Upp Upp Zhi Pro Res Qua Res Total 10577 | 4 135 247 670 15 830 427 311 261 277 376 457 1225 222 54 364 146 192 169 582 653 191 423 1222 619 505 Wait 995 | . . 11 28 6 34 5 18 15 . 29 22 413 12 1 18 . 8 9 23 . 17 28 210 79 9 Move 8279 | . 116 201 531 8 634 413 245 201 257 278 359 642 172 43 307 131 118 119 504 605 150 383 942 476 444 Hop 34 | . . . . . . . . . . . . . . . . . . . . . . 4 3 21 6 Pick Up 138 | . 5 8 27 . 29 . 3 5 3 7 3 9 2 1 3 6 5 1 1 . 2 2 9 7 . Fast Attach 93 | . 1 1 3 . 11 . 1 3 1 1 1 1 1 . . 2 2 8 4 7 9 2 12 9 13 Attach 66 | . . . 10 . 7 . 2 1 . 3 4 6 1 . 1 . 8 1 1 1 3 . 7 5 5 Detach 33 | . . . . . 8 . . . 1 . . 6 1 . . 1 2 . . 3 1 . 2 1 7 Swap 28 | 2 1 1 6 . 2 1 2 3 1 1 2 1 2 . 2 . . . . . . . . 1 . Drop 145 | 2 1 1 19 . 27 . 4 7 6 13 1 5 1 . 2 6 1 1 . 8 3 3 18 11 5 Fire 597 | . 11 23 46 1 78 8 35 25 4 40 55 36 30 9 31 . 46 30 49 27 . 1 12 . . Melee 64 | . . . . . . . . . . . 10 14 . . . . 1 . . 1 6 . 7 9 16 Ram 2 | . . 1 . . . . . . . 1 . . . . . . . . . . . . . . . Kick 1 | . . . . . . . . . . . . . . . . . 1 . . . . . . . . Crush 16 | . . . . . . . 1 1 4 3 . 6 . . . . . . . 1 . . . . . Escape Stasis 15 | . . . . . . . . . . . . 15 . . . . . . . . . . . . . Rewire 71 | . . . . . . . . . . . . 71 . . . . . . . . . . . . . Trap . | . . . . . . . . . . . . . . . . . . . . . . . . . . Miscellaneous . | . . . . . . . . . . . . . . . . . . . . . . . . . . Route ------- -11/Junkyard -10/Materials -10/Mines -9/Materials (discovered 5 exits: *Mat x3 / *Min x2) -9/Mines -9/Exiles -8/Mines -8/Materials -8/Storage -8/Recycling -6/Factory -5/Factory -5/Extension (discovered 2 exits: *Fac / *Cet) -5/Cetus (discovered 2 exits: *Fac / *Arc) -5/Archives (discovered 2 exits: *Fac / *Hub) -5/Hub_04(d) (discovered 4 exits: *Fac x4) -4/Factory -4/Waste -4/Factory -4/Upper Caves -4/Upper Caves (discovered 2 exits: *Res / *Zhi) -4/Zhirov -3/Proximity Caves -3/Research (discovered 2 exits: *Res / *Qua) -3/Quarantine -2/Research (discovered 1 exit: *Acc) History --------- Turn | Location | Event 6 | -11/Junkyard | Discovered new exit (range 0) 6 | -11/Junkyard | Entered Materials 171 | -10/Materials | Discovered new exit (range 10) 199 | -10/Materials | Entered Mines 231 | -10/Mines | Learned Materials security intel 312 | -10/Mines | Build established: Mutant 486 | -10/Mines | Discovered new exit (range 7) 499 | -10/Mines | Met a Derelict shopkeep closing up shop 567 | -10/Mines | Entered Materials 567 | -9/Materials | Evolved 2 slots: Propulsion x1, Weapon x1 733 | -9/Materials | Discovered new exit (range 6) 981 | -9/Materials | Lost 7 parts (1p3n1u2w) 1019 | -9/Materials | Identified exit to Materials 1263 | -9/Materials | Discovered exit to Materials (range 13) 1319 | -9/Materials | Build established: Gunner 1383 | -9/Materials | Discovered new exit (range 16) 1413 | -9/Materials | Identified exit to Mines 1511 | -9/Materials | Discovered exit to Materials (range 15) 1632 | -9/Materials | Entered Mines 1633 | -9/Mines | Assembled infested the area 1638 | -9/Mines | Assisted by a Guerilla fighting off Assembled 1644 | -9/Mines | Deemed a non-threat by the Exiles lab entrance 1644 | -9/Mines | Discovered new exit (range 5) 1653 | -9/Mines | Build established: Scavenger-Gunner 1653 | -9/Mines | Entered Exiles 1709 | -9/Exiles | Met 8R-AWN 1726 | -9/Exiles | Met EX-HEX 1863 | -9/Exiles | Met EX-BIN 1879 | -9/Exiles | Aligned with FarCom system 1880 | -9/Exiles | Given EX-Vault access code 1910 | -9/Exiles | Opened EX-Vault 1918 | -9/Exiles | Found Cloak of Protection 1925 | -9/Exiles | Found Potential Leg 1927 | -9/Exiles | Found Potential Leg 1956 | -9/Exiles | Warned to stay clear of 0b10 Research branches 1964 | -9/Exiles | Build established: Mutant 2003 | -9/Exiles | Met EX-DEC 2011 | -9/Exiles | Learned location of Zion (-6) 2127 | -9/Exiles | Attacked by the Exiles 2260 | -9/Exiles | Core integrity fell below 50% 2314 | -9/Exiles | Lost 5 parts (2n2u1w) 2339 | -9/Exiles | Core integrity fell below 20% 2350 | -9/Exiles | Destroyed 8R-AWN 2369 | -9/Exiles | Found Prototype Protection 2373 | -9/Exiles | Found Prototype Ballistic Gun 2373 | -9/Exiles | Identified 8R-AWN's Boregun 2385 | -9/Exiles | Found Prototype Device 2385 | -9/Exiles | Identified AS-neutralizer No. 17b 2389 | -9/Exiles | Found Prototype Processor 2389 | -9/Exiles | Identified Exp. Targeting Computer 2605 | -9/Exiles | Destroyed EX-HEX 2622 | -9/Exiles | Destroyed EX-BIN 2645 | -9/Exiles | Destroyed EX-DEC 2668 | -9/Exiles | Found Corrupted Prototype Device 2680 | -9/Exiles | Found Prototype Energy Gun 2680 | -9/Exiles | Identified AWS/EX-DEC 2698 | -9/Exiles | Found Prototype Processor 2978 | -9/Exiles | Discovered new exit (range 10) 2983 | -9/Exiles | Build established: Scavenger-Gunner 2997 | -9/Exiles | Entered Mines 3970 | -8/Mines | Discovered exit to Materials (range 8) 3981 | -8/Mines | Entered Materials 3981 | -8/Materials | Evolved 2 slots: Utility x2 3981 | -8/Materials | Identified Exp. Core Analyzer 4297 | -8/Materials | Garrison activated, responded to threat 4386 | -8/Materials | Identified exit to Storage 4530 | -8/Materials | Entered Storage 4753 | -8/Storage | Identified exit to Recycling 5077 | -8/Storage | Used back door to open Recycling access 5087 | -8/Storage | Entered Recycling 5098 | -8/Recycling | Found Scrap Engine 5644 | -8/Recycling | Discovered new exit (range 16) 5718 | -8/Recycling | Entered Factory 5718 | -6/Factory | Evolved 4 slots: Utility x4 6068 | -6/Factory | Search patrols dispatched 6185 | -6/Factory | Discovered new exit (range 10) 6325 | -6/Factory | Build established: Scavenger-Mutant 6418 | -6/Factory | First assault squad dispatched 6468 | -6/Factory | Entered another Factory area 6468 | -5/Factory | Evolved 2 slots: Utility x2 6794 | -5/Factory | Destroyed 8 combat bots 6935 | -5/Factory | Build established: Hacker-Mutant 7169 | -5/Factory | Discovered new exit (range 15) 7189 | -5/Factory | Identified exit to Extension 7190 | -5/Factory | Entered Extension 7308 | -5/Extension | Lost 3 parts (1n1u1w) 7460 | -5/Extension | Rescued a captive Derelict 7565 | -5/Extension | Rescued a captive Derelict 7646 | -5/Extension | Rescued a captive Derelict 7647 | -5/Extension | Rescued a captive Derelict 7663 | -5/Extension | Rescued a captive Derelict 7789 | -5/Extension | Rescued a captive Derelict 7807 | -5/Extension | Rescued a captive Derelict 7929 | -5/Extension | Rescued A7 8028 | -5/Extension | Rescued a captive Derelict 8028 | -5/Extension | Rescued a captive Derelict 8090 | -5/Extension | First assault squad dispatched 8118 | -5/Extension | Rescued a captive Derelict 8118 | -5/Extension | Rescued a captive Derelict 8206 | -5/Extension | Build established: Hacker-Construct 8328 | -5/Extension | Discovered new exit (range 10) 8330 | -5/Extension | Discovered new exit (range 6) 8349 | -5/Extension | Identified exit to Factory 8362 | -5/Extension | Identified exit to Cetus 8579 | -5/Extension | Entered Cetus 8579 | -5/Cetus | Accompanied by 1 ally (A7) 8584 | -5/Cetus | Acquired a Cetus Manufacturing Module code from A7 8598 | -5/Cetus | Spotted Cetus Guard 8598 | -5/Cetus | Spotted Cetus Guard 8599 | -5/Cetus | Spotted Cetus Guard 8607 | -5/Cetus | Spotted Cetus Guard 8608 | -5/Cetus | Allies destroyed Cetus Guard 8608 | -5/Cetus | Destroyed Cetus Guard 8620 | -5/Cetus | Allies destroyed Cetus Guard 8621 | -5/Cetus | Destroyed Cetus Guard 8696 | -5/Cetus | Started Cetus Manufacturing Module 8721 | -5/Cetus | Manufactured an Enhanced Grunt 8746 | -5/Cetus | Manufactured an Enhanced Grunt 8770 | -5/Cetus | Discovered new exit (range 15) 8771 | -5/Cetus | Manufactured an Enhanced Grunt 8796 | -5/Cetus | Manufactured an Enhanced Grunt 8821 | -5/Cetus | Manufactured an Enhanced Grunt 8824 | -5/Cetus | Spotted Cetus Guard 8825 | -5/Cetus | Spotted Cetus Guard 8831 | -5/Cetus | Spotted Cetus Guard 8831 | -5/Cetus | Allies destroyed Cetus Guard 8833 | -5/Cetus | Allies destroyed Cetus Guard 8833 | -5/Cetus | Spotted Cetus Guard 8843 | -5/Cetus | Allies destroyed Cetus Guard 8847 | -5/Cetus | Discovered exit to Factory (range 16) 8847 | -5/Cetus | Allies destroyed Cetus Guard 8857 | -5/Cetus | Met Revision 17 8868 | -5/Cetus | Build established: Scavenger-Construct 8939 | -5/Cetus | Identified exit to Archives 8950 | -5/Cetus | Entered Archives 8950 | -5/Archives | Accompanied by 6 allies (A7) 9002 | -5/Archives | Discovered exit to Factory (range 15) 9017 | -5/Archives | Discovered new exit (range 13) 9036 | -5/Archives | Identified exit to Hub_04(d) 9038 | -5/Archives | Entered Hub_04(d) 9038 | -5/Hub_04(d) | Accompanied by 5 allies 9338 | -5/Hub_04(d) | First assault squad dispatched 9595 | -5/Hub_04(d) | Network Hub disabled 9595 | -5/Hub_04(d) | Network Hub disabled 9608 | -5/Hub_04(d) | Entered Factory 9608 | -4/Factory | Evolved 2 slots: Power x1, Propulsion x1 9661 | -4/Factory | Repaired Mni. Grenade Launcher 9681 | -4/Factory | Build established: Hacker-Construct 9843 | -4/Factory | Sucked down chute 9843 | -4/Factory | Entered Waste 9855 | -4/Waste | Spotted C-40 Crusher 9858 | -4/Waste | EMP discharged 9859 | -4/Waste | Destroyed C-40 Crusher 9861 | -4/Waste | Spotted C-40 Crusher 9861 | -4/Waste | Spotted C-40 Crusher 9873 | -4/Waste | Crushed by Compactor (1 part destroyed) 9876 | -4/Waste | Crushed by Compactor (1 part destroyed, 1 dropped) 9881 | -4/Waste | Crushed by Compactor (0 parts destroyed, 1 dropped) 9884 | -4/Waste | Crushed by Compactor (0 parts destroyed, 1 dropped) 9888 | -4/Waste | Crushed by Compactor (1 part destroyed) 9902 | -4/Waste | Destroyed C-40 Crusher 9919 | -4/Waste | Lost 3 parts (3u) 9919 | -4/Waste | Crushed by Compactor (0 parts destroyed, 1 dropped) 9940 | -4/Waste | Crushed by Compactor (0 parts destroyed, 1 dropped) 9948 | -4/Waste | Destroyed C-40 Crusher 9951 | -4/Waste | Spotted C-40 Crusher 9958 | -4/Waste | EMP discharged 9958 | -4/Waste | Spotted C-40 Crusher 9973 | -4/Waste | Crushed by Compactor (1 part destroyed, 1 dropped) 9982 | -4/Waste | Crushed by Compactor (0 parts destroyed, 1 dropped) 9994 | -4/Waste | Destroyed C-40 Crusher 10012 | -4/Waste | Crushed by Compactor (1 part destroyed) 10015 | -4/Waste | Crushed by Compactor (1 part destroyed) 10030 | -4/Waste | Spotted C-40 Crusher 10046 | -4/Waste | Lost 7 parts (1p1n2u3w) 10058 | -4/Waste | EMP discharged 10058 | -4/Waste | System corruption reached 10% 10060 | -4/Waste | Discovered new exit (range 10) 10067 | -4/Waste | Entered Factory 10147 | -4/Factory | Spotted B-86 Titan 10204 | -4/Factory | Destroyed B-86 Titan 10242 | -4/Factory | Build established: Mutant 10279 | -4/Factory | Discovered new exit (range 16) 10334 | -4/Factory | Entered Upper Caves 10425 | -4/Upper Caves | Lost 3 parts (1p1n1u) 10507 | -4/Upper Caves | Attracted the attention of an 0b10 checkpoint 10508 | -4/Upper Caves | Core integrity fell below 50% 10572 | -4/Upper Caves | Lost 3 parts (1p1n1u) 10860 | -4/Upper Caves | Learned Research security intel 11182 | -4/Upper Caves | Discovered new exit (range 15) 11257 | -4/Upper Caves | Entered another Upper Caves area 11273 | -4/Upper Caves | P-70 Sage assimilated allied T2-G8Z(S) 11275 | -4/Upper Caves | P-70 Sage assimilated allied 7P-X1R(S) 11286 | -4/Upper Caves | Discovered new exit (range 7) 11326 | -4/Upper Caves | Encountered a Warlord checkpoint 11653 | -4/Upper Caves | Build established: Derelict-Mutant 11877 | -4/Upper Caves | Attracted the attention of an 0b10 checkpoint 11944 | -4/Upper Caves | Attracted the attention of an 0b10 outpost 12017 | -4/Upper Caves | Lost 5 parts (1p2n1u1w) 12030 | -4/Upper Caves | Discovered new exit (range 11) 12045 | -4/Upper Caves | Entered Zhirov 12045 | -4/Zhirov | Discovered new exit (range 3) 12055 | -4/Zhirov | Met Zhirov 12065 | -4/Zhirov | Learned location of Testing (-2) 12065 | -4/Zhirov | Learned location of Command (-1) 12069 | -4/Zhirov | Zhirov requested help retrieving the SGEMP Prototype 12077 | -4/Zhirov | Found Alien Artifact 12077 | -4/Zhirov | Identified Integrated Dissipator 12077 | -4/Zhirov | Installed Integrated Dissipator, increased core heat dissipation (+20) 12085 | -4/Zhirov | Found Alien Artifact 12202 | -4/Zhirov | Entered Proximity Caves 12416 | -3/Proximity Caves | Core integrity fell below 20% 12450 | -3/Proximity Caves | Discovered new exit (range 8) 12453 | -3/Proximity Caves | Entered Research 12453 | -3/Research | Evolved 2 slots: Utility x2 12480 | -3/Research | Spotted B-86 Titan 12507 | -3/Research | Lost 3 parts (1n1u1w) 12545 | -3/Research | Identified Transdimensional Reconstructor 12545 | -3/Research | Warped through subspace 12556 | -3/Research | Spotted B-86 Titan 12653 | -3/Research | Revision forces began assault on 0b10 12748 | -3/Research | Met up with Revision 17++ 13153 | -3/Research | Research terminal network offline 13350 | -3/Research | Discovered new exit (range 15) 13368 | -3/Research | Identified exit to Research 13423 | -3/Research | Build established: Hacker-Mutant 13558 | -3/Research | Spotted Striker 13615 | -3/Research | Found Enh. Force Lance 13621 | -3/Research | Found Prototype Hackware 13737 | -3/Research | Found Exp. System Shield 13786 | -3/Research | Discovered new exit (range 11) 13809 | -3/Research | Spotted Striker 13816 | -3/Research | Spotted Striker 13830 | -3/Research | Identified exit to Quarantine 13835 | -3/Research | Entered Quarantine 13866 | -3/Quarantine | Lost 3 parts (2n1w) 13898 | -3/Quarantine | Found Alien Artifact 13907 | -3/Quarantine | Found Alien Artifact 13918 | -3/Quarantine | Found Alien Artifact 14008 | -3/Quarantine | Found Alien Artifact 14008 | -3/Quarantine | Identified Phase Armor 14010 | -3/Quarantine | Identified Exp. Hacking Suite 14071 | -3/Quarantine | Found Alien Artifact 14071 | -3/Quarantine | Identified Subatomic Replicator 14075 | -3/Quarantine | Identified Terrabomb (x3) 14075 | -3/Quarantine | Used Terrabomb 14082 | -3/Quarantine | Core integrity fell below 50% 14088 | -3/Quarantine | Discovered exit to Research (range 16) 14124 | -3/Quarantine | Used Terrabomb 14226 | -3/Quarantine | Found Alien Artifact 14226 | -3/Quarantine | Identified Core Reset Matrix 14226 | -3/Quarantine | Used Core Reset Matrix 14230 | -3/Quarantine | Detected hypermatrix surge 14230 | -3/Quarantine | Sensed 2 artifacts in vicinity 14263 | -3/Quarantine | Lost 4 parts (2n2u) 14286 | -3/Quarantine | Found Prototype Slashing Weapon 14300 | -3/Quarantine | Identified Molecular Scythe 14305 | -3/Quarantine | Crushed by falling debris 14305 | -3/Quarantine | Core integrity fell below 20% 14305 | -3/Quarantine | System corruption reached 10% 14336 | -3/Quarantine | Lost 3 parts (3u) 14336 | -3/Quarantine | Discovered exit to Research (range 16) 14345 | -3/Quarantine | Entered Research 14345 | -2/Research | Evolved 2 slots: Power x1, Propulsion x1 14451 | -2/Research | Discovered new exit (range 14) 14465 | -2/Research | Identified exit to Access 14540 | -2/Research | Build established: Mutant 14549 | -2/Research | Core integrity fell below 50% 14552 | -2/Research | Emitted hypermatrix ping 14557 | -2/Research | Assembled emerged from beneath the floor 14562 | -2/Research | Assembled emerged from beneath the floor 14583 | -2/Research | Lost 10 parts (8n2u) 14600 | -2/Research | Core integrity fell below 20% 14630 | -2/Research | Destroyed by S-43 Plague with Heavy Machine Gun Last Messages --------------- 14543_ Xenon Bombardment Thruster destroyed. 14545_ Dropped Mic. Antimatter Reactor. 14547_ Adv. Targeting Computer destroyed. 14551_ Triggered Ambush Trap. 14551_ L-61 Swordsman emerges from a hatch in the floor. 14551_ G-73 Enforcer emerges from a hatch in the floor. 14552_ Emitted hypermatrix ping. 14552_ Gyrokinetic Inverter destroyed. 14553_ Detected hypermatrix ping. 14557_ B-74 Champion suffers critical hit (Burn). 14562_ Assembled emerge from beneath the floor. 14590_ Critical hit (Burn: +37). 14600_ Destroyed Unknown Hover Unit. 14602_ Adv. Signal Interpreter destroyed. 14603_ P-80 Master destroyed. 14605_ Acquired 63 matter. 14606_ Destroyed Unknown Hover Unit. 14609_ Destroyed Unknown Energy Gun. 14610_ Molecular Scythe destroyed. 14628_ Imp. Salvage Targeting Computer destroyed. Map ----- +----------------------------------------------------+ | ####?# #?????????????????????????????????????????? | | ?# #?????????????????????????????????????????? | | ## #?????????????????????????????????????????? | | ## #?????????????????????????????????????????? | | ## #?????????????????????????????????????????? | | ! ## #???? ????????????????????????????????????? | | ! ## #??? ?????????????????????????????????????? | | ! ## ###? ?????????????????????????????????????? | | # # ?????????????????####?????????????????? | | / # ????????????????? !?????????????????? | | # ! +?????????????????? !?????????????????? | | #=*%=#?????????????????" ?????????????????? | | # #?????????????????" ?????????????????? | | # #?????????????????" ?????????????????? | | # #??????????????? ?????????????????? | | # #??????????????? ?????????????????? | | + #?#######???????""" """ ???????????????? | | # #?? ! ?????????"" """????????????????? | | ##### #?? ?????????"" s""?????????????????? | | ????# #??? ??????????? ??????????????????? | | ????# #??? ??????????? ???????????????????? | | ????# #####+#############s#########???????????? | | ????# ##A?????????? | | ????# g ?????? | | ????# gu ?????? | | ????# l p @ k p ??????? | | ????# #### ### T# ##### ### ??????? | | ????# ####+######+##??# #??? "F "" ???????? | | ????# #= #??# #???? ""?""????????? | | ????# # #??# #?????""???????????? | | ????# # #??# #?????? ???????????? | | ????# # #??# #??????????????????? | | ????# + #??# #??????????????????? | | ##### ##############??# #??????????????????? | | # #???????????????# #??????????????????? | | # #???????????????# #??????????????????? | | # #???????????????# #??????????????????? | | # #???????????????? #??????????????????? | | "" # #???????????????? #??????????????????? | | ""=!+ #???????????????? ????????????????????? | | ""* # #???????????????????????????????????????? | | ""!!# #??#######??????????????????????????????? | | "" [# #? #??????????????????????????????? | | # #? #??????????????????????????????? | | # # #??????????????????????????????? | | ##+"# # """ #??????????????????????????????? | | ] # + """ #??????????????????????????????? | | # # """ #??????????????????????????????? | | # # #??????????????????????????????? | | # #? #??????????????????????????????? | +----------------------------------------------------+ Best States ------------- Heat Dissipation 85 Coolant Potential 80 Energy Generation 41 Energy Capacity 1100 Matter Stores 300 Matter Capacity 300 Sight Range 16 Robot Scan Range 15 Terrain Scan Density 210 Cloak Strength 5 EM Shielding 2 Corruption Containment 12 Corruption Block 20 Armor Coverage 225 Power Shielding 66 Weapon Shielding 33 Point Defense Rating 160 Evasion (%) 64 Targeting Accuracy 24 Target Analysis 6 Core Analysis 8 Armor Integrity Analysis 40 Recoil Reduction 3 Salvage Targeting 6 Offensive Hacking 28 Defensive Hacking 26 Authchip Count 1 Item Schematics ----------------- None Robot Schematics ------------------ None Fabricated ------------ Nothing Alien Tech Used ----------------- Integrated Dissipator Transdimensional Reconstructor Phase Armor Subatomic Replicator Terrabomb Core Reset Matrix Achievements -------------- None Challenges ------------ None Game ------ Seed FusionParticleDeconstructor Manual? 0 Play Time 02:54:19 Cumulative 351.1 hours Start 2023.03.27 @ 11:20:38 End 2023.03.27 @ 16:23:23 Sessions 3 Manual Loads 0 Difficulty Rogue Special Mode None Game No. 396 Rogue 396 Adventurer 0 Explorer 0 Win Type - Total 11 Types 8/0/2/1/0/0/0/0/0 Lore% 80 Gallery% 89 Achievement% 78 Wizard Run 0 Options --------- ASCII 0 Keyboard 0 Movement Numpad Keybinds 0 Fullscreen 1 Font 18/Terminus Map View 76x50 Tactical HUD 1 Map Filters NONE Filters NONE Steam 1 RUN: 98187cd3-e2d5-4d89-980b-8af747be15f8